bitfinex-derivatives/quotes_SOLF0:USTF0_20241012
["timestamp","ask_amount","ask_price","bid_price","bid_amount"]
[1728758415411,0.12502,146.57,146.56,11.8117]
[1728758417024,8.52502,146.63,146.6,3.4108]
[1728758417619,3.4104,146.62,146.6,3.4108]
[1728758418825,8.52502,146.63,146.6,3.4108]
[1728758419028,0.12502,146.63,146.61,8.4]
[1728758419530,0.12502,146.63,146.62,8.4]
[1728758419823,0.12502,146.63,146.62,11.8103]
[1728758424919,0.12502,146.63,146.61,1.4029]
[1728758425118,0.12502,146.63,146.6,3.4107]
[1728758425119,8.52502,146.63,146.6,3.4107]
[1728758425319,8.52502,146.63,146.59,8.4]
[1728758425822,8.52502,146.63,146.61,3.4105]
[1728758427523,0.12502,146.63,146.61,3.4105]
[1728758429026,0.12502,146.63,146.61,11.8105]
[1728758429240,0.12502,146.63,146.62,3.4103]
[1728758434134,0.12502,146.63,146.61,11.8104]
[1728758434334,0.12502,146.63,146.6,8.4]
[1728758434530,8.4,146.62,146.54,1.3117]
[1728758434733,8.4,146.6,146.57,3.4113]
[1728758435236,3.4113,146.58,146.56,3.4117]
[1728758435431,8.4,146.59,146.56,3.4117]
[1728758436733,11.8111,146.59,146.56,3.4117]
[1728758437730,11.8113,146.58,146.55,3.4119]
[1728758438530,8.4,146.59,146.56,3.4116]
[1728758438930,8.4,146.58,146.56,3.4116]
[1728758439927,8.4,146.58,146.55,3.4119]
[1728758441439,8.4,146.57,146.54,3.4121]
[1728758441738,8.4,146.56,146.54,3.4121]
[1728758442540,8.4,146.57,146.54,3.4121]
[1728758442738,8.4,146.57,146.55,3.4119]
[1728758443139,8.4,146.57,146.52,2.6919]
[1728758443341,8.4,146.57,146.54,3.4121]
[1728758444340,8.4,146.57,146.55,3.4118]
[1728758445043,11.8115,146.57,146.54,3.4121]
[1728758445446,8.4,146.56,146.54,3.4121]
[1728758448639,8.4,146.56,146.55,3.4119]
[1728758450748,8.4,146.57,146.55,3.4119]
[1728758454650,8.4,146.56,146.55,3.4119]
[1728758456345,11.8119,146.56,146.53,3.4122]
[1728758456544,11.8119,146.56,146.51,8.52502]
[1728758456545,8.4,146.56,146.51,8.52502]
[1728758457041,11.8117,146.56,146.53,3.4122]
[1728758457242,8.4,146.55,146.53,3.4122]
[1728758459355,8.4,146.54,146.53,3.4122]
[1728758460759,8.4,146.54,146.51,0.12502]
[1728758460953,8.4,146.54,146.52,3.4126]
[1728758463155,8.4,146.54,146.51,0.12502]
[1728758463352,8.4,146.54,146.53,3.4124]
[1728758464555,8.4,146.55,146.53,3.4124]
[1728758464955,8.4,146.55,146.51,8.52502]
[1728758465153,8.4,146.55,146.54,3.4122]
[1728758466552,8.4,146.56,146.54,3.4122]
[1728758468162,8.4,146.55,146.51,8.52502]
[1728758468361,8.4,146.55,146.53,3.4123]
[1728758469859,8.4,146.54,146.53,3.4123]
[1728758470766,8.4,146.54,146.51,0.12502]
[1728758470963,8.4,146.52,146.51,0.12502]
[1728758472559,11.8126,146.52,146.51,0.12502]
[1728758472960,11.8126,146.52,146.51,1e-08]
[1728758473666,11.8126,146.52,146.46,3.4139]
[1728758473667,3.4134,146.49,146.46,3.4139]
[1728758473856,8.4,146.48,146.46,3.4139]
[1728758476068,3.4132,146.5,146.47,3.4138]
[1728758476368,8.4,146.5,146.45,8.52502]
[1728758477464,8.4,146.5,146.47,3.4136]
[1728758478069,3.48784817,146.53,146.47,8.4]
[1728758478277,8.4,146.51,146.47,8.4]
[1728758479380,8.4,146.51,146.49,3.4133]
[1728758479877,8.4,146.5,146.49,3.4133]
[1728758483578,8.4,146.5,146.48,3.4135]
[1728758483778,8.4,146.5,146.45,9.91802]
[1728758484075,8.4,146.48,146.45,1.51802]
[1728758485473,8.4,146.48,146.47,3.4137]
[1728758486677,8.4,146.49,146.45,1.51802]
[1728758486877,11.8129,146.51,146.48,3.4136]
[1728758489373,8.4,146.5,146.48,3.4136]
[1728758495179,8.4,146.49,146.47,3.4137]
[1728758495886,8.4,146.48,146.45,0.12502]
[1728758496085,8.4,146.46,146.45,3.53912]
[1728758497786,8.4,146.46,146.45,0.12502]
[1728758498783,11.814,146.46,146.45,0.12502]
[1728758502682,3.4146,146.44,146.41,3.4152]
[1728758502884,8.4,146.44,146.39,0.12502]
[1728758503086,8.4,146.45,146.43,3.4147]
[1728758503280,8.4,146.46,146.43,3.4147]
[1728758504486,11.8142,146.46,146.43,3.4147]
[1728758505583,11.8146,146.44,146.41,3.415]
[1728758507297,8.4,146.42,146.41,3.415]
[1728758507584,8.4,146.42,146.4,3.4153]
[1728758509387,8.4,146.42,146.41,3.4152]
[1728758510088,8.4,146.42,146.4,3.4154]
[1728758510595,8.4,146.41,146.39,0.12502]
[1728758510984,7.3916,146.49,146.39,8.52502]
[1728758511185,8.4,146.44,146.39,8.52502]
[1728758512980,8.4,146.44,146.41,3.4151]
[1728758513188,8.4,146.43,146.41,3.4151]
[1728758513693,8.4,146.42,146.39,0.12502]
[1728758514288,11.8151,146.42,146.39,3.54052]
[1728758514696,8.4,146.4,146.39,0.12502]
[1728758515491,11.8154,146.4,146.39,0.12502]
[1728758515990,8.4,146.4,146.39,0.12502]
[1728758516695,11.8154,146.4,146.39,0.12502]
[1728758522603,3.4153,146.41,146.39,0.12502]
[1728758522802,8.4,146.4,146.39,0.12502]
[1728758523601,86.18661896,146.44,146.39,0.12502]
[1728758523804,8.4,146.42,146.39,0.12502]
[1728758523991,8.4,146.42,146.4,3.4153]
[1728758524397,8.4,146.41,146.39,3.54062]
[1728758525905,8.4,146.41,146.39,0.12502]
[1728758526604,8.4,146.41,146.39,3.54062]
[1728758529107,8.4,146.41,146.4,3.4154]
[1728758530805,8.4,146.42,146.41,3.4152]
[1728758531018,8.4,146.43,146.39,8.52502]
[1728758531497,84.79111918,146.49,146.4,8.4]
[1728758531700,8.4,146.44,146.4,8.4]
[1728758531903,89.53111918,146.49,146.4,8.4]
[1728758532108,8.4,146.44,146.4,8.4]
[1728758533008,8.4,146.45,146.43,3.4146]
[1728758534009,8.4,146.45,146.44,3.4145]
[1728758537017,86.83721918,146.49,146.46,3.414]
[1728758537310,86.83721918,146.49,146.43,8.4]
[1728758537311,8.4,146.48,146.43,8.4]
[1728758537915,8.4,146.48,146.47,3.4138]
[1728758539115,8.4,146.48,146.46,3.4139]
[1728758543706,3.4132,146.5,146.47,3.4138]
[1728758543919,8.4,146.49,146.47,3.4138]
[1728758544319,11.8134,146.49,146.46,3.4139]
[1728758544615,8.4,146.48,146.46,3.4139]
[1728758548320,8.4,146.48,146.47,3.4138]
[1728758548516,8.4,146.49,146.47,3.4138]
[1728758549916,11.93802,146.51,146.48,3.4136]
[1728758551024,8.4,146.5,146.48,3.4136]
[1728758559434,0.12502,146.51,146.49,3.4132]
[1728758560125,0.12502,146.51,146.47,8.4]
[1728758560331,0.12502,146.51,146.5,3.4131]
[1728758564930,8.52502,146.51,146.47,9.7753]
[1728758565137,8.4,146.49,146.48,3.4134]
[1728758566331,0.12502,146.51,146.47,9.7753]
[1728758566628,0.12502,146.51,146.49,3.4132]
[1728758567734,8.4,146.5,146.48,3.4134]
[1728758576634,8.4,146.5,146.49,3.4133]
[1728758577741,11.8131,146.5,146.47,1.3753]
[1728758578037,8.4,146.5,146.45,8.4]
[1728758578238,8.4,146.5,146.48,3.4134]
[1728758581040,8.4,146.5,146.45,8.4]
[1728758581234,8.4,146.5,146.49,3.4133]
[1728758585440,3.53802,146.51,146.49,3.4133]
[1728758585637,8.4,146.5,146.49,3.4133]
[1728758587841,8.52502,146.51,146.49,3.4133]
[1728758591352,8.4,146.5,146.49,3.4133]
[1728758593946,8.52502,146.51,146.5,3.4131]
[1728758594146,0.12502,146.51,146.5,3.4131]
[1728758595649,0.12502,146.51,146.5,11.8131]
[1728758616058,1e-08,146.51,146.5,11.8131]
[1728758617666,8.52502,146.57,146.5,8.4]
[1728758617860,0.12502,146.57,146.54,8.4]
[1728758618159,0.12502,146.57,146.53,8.4]
[1728758618364,0.12502,146.57,146.54,3.4119]
[1728758618963,0.12502,146.57,146.55,3.4119]
[1728758625067,0.12502,146.57,146.56,3.4117]
[1728758630667,8.52502,146.57,146.53,3.4123]
[1728758630867,8.4,146.54,146.53,3.4123]
[1728758640683,3.4118,146.56,146.53,3.4123]
[1728758640884,11.93652,146.57,146.54,3.4121]
[1728758642082,8.4,146.55,146.54,3.4121]
[1728758642785,8.4,146.55,146.53,3.4123]
[1728758643588,8.4,146.56,146.54,3.4122]
[1728758658308,8.4,146.55,146.54,3.4122]
[1728758675721,8.4,146.55,146.53,3.4123]
[1728758679627,3.4117,146.56,146.51,8.4]
[1728758679929,11.93662,146.57,146.54,3.4121]
[1728758685628,8.52502,146.57,146.53,8.4]
[1728758685925,0.12502,146.57,146.53,8.4]
[1728758686624,0.12502,146.57,146.56,3.4117]
[1728758690028,8.52502,146.57,146.56,3.4117]
[1728758690229,8.52502,146.57,146.55,3.4119]
[1728758690419,8.4,146.56,146.5,8.4]
[1728758690623,8.4,146.54,146.5,8.4]
[1728758691426,8.4,146.54,146.53,3.4122]
[1728758692136,8.4,146.55,146.5,8.4]
[1728758692333,8.4,146.55,146.54,3.4121]
[1728758700433,8.4,146.55,146.53,3.4123]
[1728758700634,8.4,146.55,146.51,8.4]
[1728758701031,8.4,146.55,146.53,3.4123]
[1728758702531,8.4,146.54,146.48,1.3384]
[1728758702838,8.4,146.5,146.48,1.3384]
[1728758703436,8.4,146.49,146.48,3.4135]
[1728758705141,8.4,146.49,146.45,0.12502]
[1728758705343,8.4,146.49,146.47,3.4137]
[1728758705538,8.4,146.49,146.45,0.12502]
[1728758705940,8.4,146.49,146.46,3.4139]
[1728758708541,3.4127,146.52,146.48,3.4134]
[1728758708741,8.4,146.51,146.47,8.4]
[1728758709839,8.4,146.51,146.49,3.4131]
[1728758710442,8.4,146.5,146.49,3.4131]
[1728758710633,8.4,146.5,146.48,3.4135]
[1728758710838,3.4127,146.52,146.48,3.4135]
[1728758710839,8.4,146.49,146.48,3.4135]
[1728758711034,8.4,146.49,146.45,8.52502]
[1728758711335,8.4,146.49,146.47,3.4136]
[1728758713045,8.4,146.48,146.46,3.414]
[1728758713945,8.4,146.48,146.47,3.4138]
[1728758714141,8.4,146.49,146.47,3.4138]
[1728758716141,3.4129,146.51,146.45,8.52502]
[1728758716142,8.4,146.5,146.45,8.52502]
[1728758716344,8.4,146.51,146.49,3.4133]
[1728758716639,8.4,146.52,146.48,8.4]
[1728758716842,8.4,146.52,146.49,3.4133]
[1728758717044,8.4,146.53,146.49,8.4]
[1728758717246,1.3553,146.56,146.52,8.4]
[1728758717442,8.4,146.56,146.53,3.4124]
[1728758719146,11.8117,146.56,146.53,3.4124]
[1728758719645,8.4,146.56,146.54,3.412]
[1728758719947,8.52502,146.57,146.53,8.4]
[1728758720345,8.52502,146.57,146.55,3.4119]
[1728758720740,0.12502,146.57,146.54,8.4]
[1728758721152,0.12502,146.57,146.55,8.4]
[1728758721355,0.12502,146.57,146.56,3.4117]
[1728758721946,0.12502,146.57,146.56,11.8117]
[1728758722448,0.12502,146.57,146.56,3.4117]
[1728758734756,0.12502,146.57,146.56,11.8117]
[1728758742569,8.4,146.61,146.58,3.4111]
[1728758743359,8.4,146.6,146.52,3.9842]
[1728758743564,8.4,146.57,146.56,3.4116]
[1728758744467,8.4,146.58,146.56,3.4116]
[1728758744972,8.4,146.59,146.56,3.4116]
[1728758746570,3.4109,146.6,146.56,3.4116]
[1728758746571,8.4,146.58,146.56,3.4116]
[1728758749472,8.4,146.59,146.56,3.4116]
[1728758750777,8.4,146.59,146.56,3.4115]
[1728758751080,11.8109,146.6,146.55,8.4]
[1728758751273,11.8109,146.6,146.57,3.4114]
[1728758752775,11.8106,146.61,146.57,3.4114]
[1728758753682,3.4108,146.6,146.57,3.4114]
[1728758757297,8.4,146.61,146.56,8.4]
[1728758757298,11.8106,146.61,146.58,3.4112]
[1728758760295,8.4,146.59,146.58,3.4112]
[1728758761396,8.4,146.59,146.53,8.4]
[1728758761697,8.4,146.57,146.56,3.4115]
[1728758761898,8.4,146.58,146.55,8.4]
[1728758762097,8.4,146.59,146.55,8.4]
[1728758763294,8.17537479,146.65,146.55,8.4]
[1728758763496,8.4,146.61,146.56,8.4]
[1728758763800,11.8105,146.62,146.58,3.411]
[1728758764296,4.0999,146.66,146.52,3.9842]
[1728758764297,4.0999,146.66,146.6,3.4106]
[1728758764499,7.49884923,146.66,146.6,8.4]
[1728758764703,8.4,146.62,146.57,8.4]
[1728758765591,3.53522,146.63,146.59,3.4108]
[1728758765793,3.53522,146.63,146.57,8.4]
[1728758765794,11.93522,146.63,146.57,8.4]
[1728758766195,11.93522,146.63,146.6,3.4106]
[1728758767393,11.93522,146.63,146.59,8.4]
[1728758767591,11.93522,146.63,146.61,3.4105]
[1728758768298,3.53522,146.63,146.58,8.4]
[1728758768499,8.4,146.62,146.6,3.4106]
[1728758770200,8.4,146.61,146.59,3.411]
[1728758770403,0.12502,146.63,146.59,3.411]
[1728758770404,8.4,146.6,146.59,3.411]
[1728758771105,8.4,146.6,146.57,3.4113]
[1728758771302,0.12502,146.63,146.57,3.4113]
[1728758771303,8.4,146.58,146.57,3.4113]
[1728758776209,11.8109,146.6,146.57,3.4113]
[1728758778409,3.4104,146.62,146.59,3.4108]
[1728758778611,0.12502,146.63,146.57,8.4]
[1728758778811,8.4,146.62,146.57,8.4]
[1728758779801,11.8104,146.62,146.59,3.4109]
[1728758780005,11.8104,146.62,146.57,8.4]
[1728758780814,11.93512,146.63,146.59,8.4]
[1728758781003,0.12502,146.63,146.61,8.4]
[1728758781199,0.12502,146.63,146.62,3.4103]
[1728758782107,0.12502,146.63,146.62,11.8103]
[1728758789307,0.12502,146.63,146.62,3.4103]
[1728758789511,8.52502,146.63,146.62,3.4103]
[1728758791415,0.12502,146.63,146.62,11.8103]
[1728758792717,0.12502,146.63,146.62,3.4103]
[1728758793105,0.12502,146.63,146.6,2.6584]
[1728758793306,8.4,146.61,146.56,1.3216]
[1728758793521,0.12502,146.63,146.56,9.7216]
[1728758793522,8.4,146.6,146.56,9.7216]
[1728758793823,8.4,146.62,146.6,3.4106]
[1728758798818,8.52502,146.63,146.58,8.4]
[1728758800422,8.52502,146.63,146.59,3.4109]
[1728758800620,8.52502,146.63,146.58,8.4]
[1728758801314,8.52502,146.63,146.6,3.4106]
[1728758802120,8.52502,146.63,146.61,3.4105]
[1728758804326,8.4,146.62,146.6,3.4107]
[1728758805227,11.8103,146.62,146.6,3.4107]
[1728758806224,8.4,146.62,146.6,3.4107]
[1728758806936,0.12502,146.63,146.62,3.4103]
[1728758808622,8.52502,146.63,146.62,3.4103]
[1728758813136,0.12502,146.63,146.62,3.4103]
[1728758820940,0.12502,146.63,146.61,3.4104]
[1728758822640,0.12502,146.63,146.61,8.4]
[1728758822939,0.12502,146.63,146.62,11.8103]
[1728758823741,0.12502,146.69,146.64,3.4098]
[1728758823949,0.12502,146.69,146.67,8.4]
[1728758824148,0.12502,146.69,146.66,8.4]
[1728758824336,0.12502,146.69,146.67,11.8091]
[1728758825147,0.12502,146.69,146.68,3.4089]
[1728758825943,0.12502,146.69,146.68,11.8089]
[1728758831845,0.12502,146.69,146.68,3.4089]
[1728758835350,0.12502,146.69,146.68,11.8089]
[1728758850166,0.12502,146.69,146.67,3.409]
[1728758850366,0.12502,146.69,146.67,8.4]
[1728758851367,0.12502,146.69,146.68,8.4]
[1728758851961,0.12502,146.69,146.68,11.8089]
[1728758854670,0.12502,146.69,146.68,8.4]
[1728758855467,0.12502,146.69,146.66,8.4]
[1728758855672,3.53372,146.69,146.66,8.4]
[1728758857375,3.53372,146.69,146.66,11.8093]
[1728758860472,0.12502,146.69,146.66,11.8093]
[1728758862272,0.12502,146.69,146.66,8.4]
[1728758862469,8.4,146.67,146.61,3.49404183]
[1728758862671,8.4,146.65,146.6,8.4]
[1728758863175,11.8097,146.65,146.62,3.4102]
[1728758866278,8.4,146.66,146.62,8.4]
[1728758866477,11.8095,146.66,146.63,3.41]
[1728758867884,6.2069,146.68,146.65,3.4094]
[1728758868086,4.7875,146.68,146.65,3.4094]
[1728758869692,13.1875,146.68,146.65,3.4094]
[1728758885298,3.4091,146.67,146.64,3.4097]
[1728758887302,8.4,146.67,146.6,3.41629795]
[1728758887610,8.4,146.65,146.6,11.81629795]
[1728758888105,3.4098,146.64,146.61,3.4104]
[1728758888900,11.8097,146.65,146.61,3.4104]
[1728758889801,3.41,146.64,146.61,3.4104]
[1728758898616,8.4,146.66,146.61,8.4]
[1728758898915,1.3785,146.68,146.62,11.8103]
[1728758899207,3.4095,146.66,146.62,11.8103]
[1728758901513,3.4095,146.66,146.62,8.4]
[1728758901714,3.4095,146.66,146.63,3.4101]
[1728758903817,11.8095,146.66,146.63,3.4101]
[1728758906611,3.4096,146.65,146.63,3.4101]
[1728758908917,11.8096,146.65,146.62,3.4101]
[1728758909316,8.4,146.64,146.59,4.8326]
[1728758909517,8.4,146.63,146.59,1.4218]
[1728758910011,3.4102,146.63,146.6,3.4106]
[1728758912918,3.4102,146.63,146.59,1.4218]
[1728758912919,8.4,146.63,146.59,1.4218]
[1728758913115,8.4,146.62,146.57,8.52502]
[1728758913715,8.4,146.62,146.58,3.411]
[1728758914013,8.4,146.6,146.58,3.411]
[1728758916317,11.8107,146.61,146.58,3.411]
[1728758918121,8.4,146.61,146.59,3.411]
[1728758918422,3.4104,146.62,146.59,11.811]
[1728758919829,3.4098,146.64,146.62,3.4103]
[1728758920018,8.4,146.64,146.61,8.4]
[1728758920516,3.4102,146.63,146.61,11.8105]
[1728758920918,3.4102,146.63,146.61,3.4105]
[1728758923528,3.4102,146.63,146.6,3.4106]
[1728758924116,11.8102,146.63,146.6,3.4106]
[1728758936448,8.4,146.63,146.6,3.4106]
[1728758936651,3.4103,146.62,146.6,3.4106]
[1728758938640,3.4103,146.62,146.59,3.4109]
[1728758939643,3.4103,146.62,146.58,8.4]
[1728758939644,11.8103,146.62,146.58,8.4]
[1728758939845,11.8103,146.62,146.58,11.8111]
[1728758940246,3.4105,146.61,146.58,11.8111]
[1728758940550,8.4,146.59,146.57,0.12502]
[1728758940744,11.8112,146.58,146.57,0.12502]
[1728758941141,3.4112,146.58,146.57,0.12502]
[1728758941349,11.8112,146.58,146.57,0.12502]
[1728758944541,3.4121,146.55,146.52,3.4126]
[1728758944747,8.4,146.54,146.52,3.4126]
[1728758945248,8.4,146.54,146.51,0.12502]
[1728758945439,11.8122,146.54,146.51,3.53772]
[1728758945849,8.4,146.52,146.51,0.12502]
[1728758946644,11.8126,146.52,146.51,0.12502]
[1728758946850,11.8126,146.52,146.51,1e-08]
[1728758948347,3.4126,146.52,146.51,1e-08]
[1728758948547,8.4,146.53,146.51,1e-08]
[1728758949044,11.8126,146.53,146.51,1e-08]
[1728758951843,8.4,146.52,146.51,1e-08]
[1728758952451,11.8126,146.52,146.51,1e-08]
[1728758954156,8.4,146.54,146.51,3.41270001]
[1728758955146,11.8123,146.54,146.51,3.41270001]
[1728758956854,3.4123,146.54,146.51,3.41270001]
[1728758957057,0.12501999,146.57,146.51,1e-08]
[1728758957452,8.4,146.54,146.51,1e-08]
[1728758958259,0.12501999,146.57,146.51,1e-08]
[1728758958462,11.8122,146.54,146.51,3.41280001]
[1728758960560,8.4,146.54,146.51,3.41280001]
[1728758960863,11.8124,146.53,146.51,3.41280001]
[1728758961168,11.8124,146.53,146.51,1e-08]
[1728758961458,3.4126,146.52,146.51,1e-08]
[1728758961663,11.8126,146.52,146.51,1e-08]
[1728758963165,3.4125,146.53,146.51,1e-08]
[1728758963359,8.4,146.52,146.51,1e-08]
[1728758964268,11.8126,146.52,146.51,1e-08]
[1728758971074,3.4126,146.52,146.51,1e-08]
[1728758971568,1.3882,146.56,146.51,1e-08]
[1728758971779,8.4,146.53,146.51,1e-08]
[1728758972272,11.8125,146.53,146.51,1e-08]
[1728758973867,3.4123,146.54,146.51,1e-08]
[1728758974170,11.8123,146.54,146.51,1e-08]
[1728758975472,3.4121,146.55,146.52,3.4126]
[1728758975665,8.4,146.54,146.52,3.4126]
[1728758979487,11.8122,146.54,146.52,3.4126]
[1728758979972,3.4122,146.54,146.52,3.4126]
[1728758980174,11.8122,146.54,146.52,3.4126]
[1728758982580,11.8122,146.54,146.51,1e-08]
[1728758982975,8.4,146.54,146.52,3.4126]
[1728758983573,11.8122,146.54,146.52,3.4126]
[1728758983772,8.4,146.54,146.52,3.4126]
[1728758984890,3.4121,146.55,146.52,3.4126]
[1728758985183,8.4,146.54,146.52,3.4126]
[1728758985679,0.12501999,146.57,146.52,8.4]
[1728758985875,11.8118,146.56,146.52,8.4]
[1728758986788,3.53661999,146.57,146.52,8.4]
[1728758986993,8.4,146.56,146.52,8.4]
[1728758987191,8.4,146.56,146.53,3.4123]
[1728758987670,11.8118,146.56,146.53,3.4123]
[1728758988884,11.8118,146.56,146.54,3.4121]
[1728758989380,11.8118,146.56,146.52,1.3016]
[1728758989782,11.8118,146.56,146.53,3.4123]
[1728758994185,3.4121,146.55,146.52,4.7142]
[1728758994493,11.8121,146.55,146.52,4.7142]
[1728758996083,3.4126,146.52,146.51,1e-08]
[1728758996486,11.8126,146.52,146.51,1e-08]
[1728759000493,3.4136,146.48,146.45,3.53912]
[1728759000794,11.8136,146.48,146.45,3.53912]
[1728759003187,8.4,146.51,146.47,8.4]
[1728759003492,8.4,146.52,146.47,8.4]
[1728759003889,3.413,146.51,146.48,3.4135]
[1728759004392,8.4,146.52,146.48,3.4135]
[1728759004589,3.4131,146.5,146.48,3.4135]
[1728759006190,11.8127,146.52,146.49,3.4132]
[1728759006388,3.4127,146.52,146.48,8.4]
[1728759007491,3.4127,146.52,146.49,3.4132]
[1728759008699,11.8125,146.53,146.49,8.4]
[1728759009688,11.8125,146.53,146.5,3.4129]
[1728759009897,8.4,146.54,146.51,8.4]
[1728759010092,11.8122,146.54,146.51,8.4]
[1728759010301,11.8122,146.54,146.51,11.8127]
[1728759011593,11.8122,146.54,146.51,8.4]
[1728759011896,3.412,146.55,146.52,11.8125]
[1728759012788,3.412,146.55,146.52,3.4125]
[1728759012992,3.412,146.55,146.52,11.8125]
[1728759018600,3.4122,146.54,146.52,11.8125]
[1728759020701,3.412,146.55,146.52,11.8125]
[1728759028601,3.412,146.55,146.53,11.8124]
[1728759028804,3.53652,146.57,146.54,8.4]
[1728759029907,3.53652,146.57,146.54,11.8121]
[1728759030711,0.12502,146.57,146.55,11.8119]
[1728759039117,0.12502,146.57,146.55,3.4119]
[1728759040311,3.53652,146.57,146.55,3.4119]
[1728759044819,8.4,146.56,146.52,1.2991]
[1728759045124,0.12502,146.57,146.52,3.4125]
[1728759045125,11.8121,146.55,146.52,3.4125]
[1728759045322,11.8121,146.55,146.51,8.4]
[1728759045521,11.8121,146.55,146.53,3.4124]
[1728759045717,3.4121,146.55,146.53,3.4124]
[1728759046020,11.8118,146.56,146.53,3.4124]
[1728759047521,11.8118,146.56,146.53,11.8124]
[1728759047825,3.4118,146.56,146.54,3.4121]
[1728759048618,3.4118,146.56,146.54,11.8121]
[1728759050515,0.12502,146.57,146.55,3.4118]
[1728759053123,0.12502,146.57,146.54,8.4]
[1728759053124,0.12502,146.57,146.56,11.8117]
[1728759056538,0.12502,146.57,146.53,4.0485]
[1728759056831,0.12502,146.57,146.55,3.4118]
[1728759058434,0.12502,146.57,146.56,3.4117]
[1728759061631,0.12502,146.57,146.56,11.8117]
[1728759065834,0.12502,146.57,146.56,3.4117]
[1728759066135,8.52502,146.57,146.46,6.8277]
[1728759066340,8.4,146.56,146.5,8.4]
[1728759066937,3.412,146.55,146.52,3.4125]
[1728759067342,3.412,146.55,146.52,11.8125]
[1728759067545,3.4118,146.56,146.54,3.4121]
[1728759067845,8.4,146.56,146.47,4.0687]
[1728759068047,3.4125,146.53,146.5,3.413]
[1728759069456,3.413,146.51,146.48,3.4135]
[1728759070451,11.813,146.51,146.48,3.4135]
[1728759070839,8.4,146.51,146.45,0.12502]
[1728759071043,8.4,146.49,146.46,3.4139]
[1728759077243,8.4,146.49,146.47,3.4137]
[1728759077449,3.34448617,146.53,146.48,8.4]
[1728759077650,4.1448,146.56,146.48,8.4]
[1728759077651,8.4,146.52,146.48,8.4]
[1728759077857,8.4,146.52,146.49,3.4133]
[1728759078158,11.8128,146.52,146.49,3.4133]
[1728759081859,11.8125,146.53,146.5,3.4129]
[1728759082051,8.4,146.53,146.5,3.4129]
[1728759083547,3.4126,146.52,146.5,3.4129]
[1728759086055,8.4,146.51,146.48,8.4]
[1728759086262,8.4,146.51,146.49,3.4132]
[1728759090057,8.4,146.53,146.48,8.4]
[1728759090260,11.8125,146.53,146.49,11.8132]
[1728759090459,8.4,146.54,146.5,8.4]
[1728759090759,2.7369,146.56,146.51,8.4]
[1728759090760,11.1369,146.56,146.51,8.4]
[1728759090962,3.4121,146.55,146.52,3.4125]
[1728759091963,11.1369,146.56,146.52,3.4125]
[1728759092161,3.4122,146.54,146.52,3.4125]
[1728759092552,3.4118,146.56,146.53,11.8123]
[1728759093364,3.412,146.55,146.53,3.4123]
[1728759095957,8.4,146.56,146.53,3.4123]
[1728759096167,11.8119,146.56,146.53,3.4123]
[1728759096955,3.4119,146.56,146.53,11.8123]